Cogmind - Beta 17.1 @@@ ROGUE MODE // 2026.09.24 @ 04:40:28 Player: cel Result: Destroyed by G-47 Trooper with Particle Gun Performance ------------- Evolutions (2) 1000 Regions Visited (4) 800 Robots Destroyed (24) 120 Value Destroyed (644) 644 Prototype IDs (0) 0 Alien Tech Used (0) 0 Bonus (0) 0 TOTAL SCORE: 2564 Bonus ------- None Cogmind --------- Core Integrity 0/550 Matter 287/300 Energy 170/265 System Corruption 0% Temperature Cool (9) Movement Core (300) Ox5 Location -8/Materials Parts ------- > --- POWER (1) -------- Improved Ion Engine > --- PROPULSION (4) --- (None) > --- UTILITY (4) ------ Medium Storage Unit Terrain Scan Processor > --- WEAPON (2) ------- (None) > --- INVENTORY (10) --- Small Storage Unit Large Storage Unit Seismic Detector Peak State ------------ > --- POWER ------------ Nuclear Core > --- PROPULSION ------- Aluminum Leg Aluminum Leg Aluminum Leg Wheel > --- UTILITY ---------- Improved Heat Sink Medium Storage Unit Hardened Medium Armor Plating Tractor Beam > --- WEAPON ----------- Pulse Rifle Light Assault Rifle > --- INVENTORY -------- Nuclear Core Nuclear Core Small Storage Unit Large Storage Unit Compact Matter Pod Improved Terrain Scanner Terrain Scan Processor Seismic Detector Beam Rifle Grenade Launcher [Rating: 21] Favorites ----------- Power Ion Engine Engine Ion Engine Power Core Nuclear Core Propulsion Aluminum Leg Leg Aluminum Leg Wheel Wheel Utility Medium Storage Unit Device Tractor Beam Storage Medium Storage Unit Processor Terrain Scan Processor Protection Medium Armor Plating Weapon Light Assault Rifle Energy Gun Small Laser Ballistic Gun Light Assault Rifle Launcher Grenade Launcher Special Weapon Welding Torch Build | -11 -10 -10 -9 -8 ------- Run | Yrd Mat Min Mat Mat Slots Evolved 4 | . . . 2 2 Power . | . . . . . Propulsion 2 | . . . 1 1 Utility 2 | . . . 1 1 Weapon . | . . . . . Parts Attached 35 | 7 1 5 9 13 Power 7 | 1 . 1 1 4 Engine 4 | 1 . 1 1 1 Core 3 | . . . . 3 Reactor . | . . . . . Propulsion 7 | 2 . 2 3 . Treads . | . . . . . Leg 5 | 2 . 1 2 . Wheel 2 | . . 1 1 . Hover . | . . . . . Flight . | . . . . . Utility 12 | 2 . 1 4 5 Device 6 | 1 . 1 2 2 Storage 3 | 1 . . 1 1 Processor 1 | . . . . 1 Hackware . | . . . . . Protection 2 | . . . 1 1 Artifact . | . . . . . Weapon 9 | 2 1 1 1 4 Energy Gun 5 | 1 1 . . 3 Energy Cannon . | . . . . . Ballistic Gun 2 | 1 . 1 . . Ballistic Cannon . | . . . . . Launcher 1 | . . . 1 . Special Weapon 1 | . . . . 1 Impact Weapon . | . . . . . Slashing Weapon . | . . . . . Piercing Weapon . | . . . . . Special Melee Weapon . | . . . . . Unidentified Prototypes . | . . . . . Parts Lost 25 | . . 5 2 18 Power 4 | . . 1 . 3 Propulsion 7 | . . 2 1 4 Utility 6 | . . 1 . 5 Weapon 8 | . . 1 1 6 Highest Loss Streak 17 | . . 4 2 17 To Critical Strikes . | . . . . . Average Backups 8 | 3 8 7 9 8 Power 1 | 1 2 1 1 1 Propulsion . | 1 2 1 . . Utility 3 | . 1 . 5 5 Weapon 2 | . 2 3 2 1 Tool/Special . | . . . . . Unused Backups 8 | 2 2 1 1 2 Power 2 | . . 1 1 . Propulsion 2 | 2 . . . . Utility 2 | . 1 . . 1 Weapon 2 | . 1 . . 1 Tool/Special . | . . . . . Average Slot Usage (%) 90 | . 100 91 90 86 Engine 8 | . 14 13 11 1 Core 2 | . . . . 7 Leg 20 | . 28 21 11 22 Wheel 6 | . . 3 16 4 Device 13 | . 14 10 11 15 Storage 11 | . 14 14 11 9 Protection 5 | . . . 10 7 Energy Gun 8 | . 14 14 6 4 Ballistic Gun 10 | . 14 12 11 7 Launcher 2 | . . . 1 4 Peak Build Rating 21 | 9 9 9 12 21 Average Rating 11 | 5 9 6 10 17 On Entrance 7 | . 9 9 8 12 Avg Prop Armor Cover (%) 5 | . . 10 5 4 Naked Turns . | . . . . . Heaviest Build 33 | 15 15 14 29 33 Greatest Support 30 | 20 20 20 30 30 Greatest Overweight (x) 6 | 3 . 3 2 6 Average Overweight (x) . | . . . 1 1 Largest Inventory Capacity 10 | 8 8 8 10 10 Average Capacity 9 | 7 8 8 9 10 Most Carried 10 | 8 8 8 10 10 Average Carried 8 | 4 7 7 9 8 Final Capacity 10 | 8 8 8 10 10 Final Carried 10 | 8 8 8 10 3 Class Distribution -------------------- 61% | Scavenger-Mutant 38% | Mutant Dominant Class ---------------- Mutant | -10/Materials Mutant | -10/Mines Scavenger-Mutant | -9/Materials Scavenger-Mutant | -8/Materials Resources | -11 -10 -10 -9 -8 ----------- Run | Yrd Mat Min Mat Mat Matter Collected 813 | 264 . 131 126 292 Remotely 361 | . . . 126 235 Salvage Created 721 | 115 38 125 183 260 Parts 46 | 7 3 8 14 14 Haulers Intercepted . | . . . . . Recyclers Shooed . | . . . . . Parts Field Recycled . | . . . . . Retrieved Matter . | . . . . . Parts Self-Destructed . | . . . . . Prevented . | . . . . . Parts Restored . | . . . . . Kills | -11 -10 -10 -9 -8 ------- Run | Yrd Mat Min Mat Mat Combat Hostiles Destroyed 19 | . 2 5 5 7 Guns 14 | . 2 5 1 6 AOE 5 | . . . 4 1 Classes Destroyed 6 | 2 1 1 2 . Worker 2 | . . . 2 . Tunneler 2 | 2 . . . . Recycler 1 | 1 . . . . Swarmer 6 | . 2 3 . 1 Grunt 11 | . . 2 4 5 Sentry 2 | . . . 1 1 Best Kill Streak 6 | 2 2 5 6 3 Combat Bots Only 5 | . 2 5 4 3 Max Kills in Single Turn 2 | 1 1 1 2 1 Gunslinging . | . . . . . Exploded 2 | . . . 2 1 Melee . | . . . . . Uniques/NPCs Destroyed . | . . . . . Combat | -11 -10 -10 -9 -8 -------- Run | Yrd Mat Min Mat Mat Hostile Shots Fired 313 | . 19 52 26 216 Missed 78 | . 8 13 6 51 Hits 235 | . 11 39 20 165 Melee 1 | . . 1 . . Projectile 234 | . 11 38 20 165 AOE 2 | . . 2 . . Critical Strikes 10 | . . 1 . 9 Damage Taken 2959 | . 101 525 246 2087 Core 737 | . 25 152 8 552 Absorbed by Shields . | . . . . . Core Remaining (%) 75 | 100 . 29 98 . Volleys Fired 87 | 19 3 15 15 35 Largest 2 | 2 2 2 2 2 Hottest 93 | 60 60 60 60 93 Shots Fired 131 | 26 6 23 20 56 Gun 122 | 26 6 23 16 51 Cannon . | . . . . . Launcher 8 | . . . 4 4 Special 1 | . . . . 1 Kinetic 62 | 19 3 8 15 17 Thermal 54 | . 3 15 1 35 Explosive 8 | . . . 4 4 Electromagnetic 7 | 7 . . . . Robot Hit Streak 9 | 3 2 9 5 9 Robot Miss Streak 5 | 4 2 5 2 2 Penetration Max . | . . . . . Secondary Targets 3 | . . 2 . 1 Max Gunslinging Chain 1 | . . 1 . 1 Shots Hit Robots 81 | 14 3 13 13 38 Core Hits 45 | 4 2 8 11 20 Critical Kills . | . . . . . Critical Parts Destroyed . | . . . . . Critical Strikes . | . . . . . Melee Attacks . | . . . . . Impact . | . . . . . Slashing . | . . . . . Piercing . | . . . . . Sneak Attacks . | . . . . . Combat Hostiles . | . . . . . Follow-up Attacks . | . . . . . Damage Inflicted 1447 | 185 33 153 382 694 Guns 991 | 185 33 153 83 537 Cannons . | . . . . . Explosions 456 | . . . 299 157 Melee . | . . . . . Ramming . | . . . . . Kinetic 410 | 161 23 42 72 112 Thermal 557 | . 10 111 11 425 Explosive 456 | . . . 299 157 Electromagnetic 24 | 24 . . . . Impact . | . . . . . Slashing . | . . . . . Piercing . | . . . . . Highest Corruption . | . . . . . Average Corruption . | . . . . . Corruption Purged . | . . . . . Corruption Blocked . | . . . . . Overload Shots . | . . . . . Overflow Damage . | . . . . . Projectiles . | . . . . . Explosions . | . . . . . Melee . | . . . . . Knockbacks . | . . . . . Impact . | . . . . . Kinetic . | . . . . . Secondary . | . . . . . Self-Inflicted Damage . | . . . . . Shots . | . . . . . Rammed . | . . . . . Targets Rammed . | . . . . . Kicked . | . . . . . Crushed . | . . . . . Highest Temperature 134 | . . 70 20 134 Average Temperature 45 | . . 43 8 55 Received Heat Transfer 1251 | . . 168 75 1008 Siege Activations . | . . . . . Martial Activations . | . . . . . Shielding Activations . | . . . . . Robots Disrupted . | . . . . . Combat Hostiles . | . . . . . Robots Corrupted . | . . . . . Combat Hostiles . | . . . . . Parts Fried . | . . . . . Impact Corruptions . | . . . . . Robots Melted . | . . . . . Combat Hostiles . | . . . . . Parts Melted 3 | . . 1 . 2 Heat Transferred 1262 | . 25 250 25 962 Parts Sabotaged . | . . . . . Parts Stolen . | . . . . . Parts Stripped . | . . . . . Power Chain Reactions . | . . . . . Alert | -11 -10 -10 -9 -8 ------- Run | Yrd Mat Min Mat Mat Maximum Alert Level . | . . . . . Low Security (%) 100 | 100 100 100 100 100 Level 1 . | . . . . . Level 2 . | . . . . . Level 3 . | . . . . . Level 4 . | . . . . . Level 5 . | . . . . . High Security . | . . . . . Max Security . | . . . . . Peak Influence 142 | 5 40 115 142 55 Initial 55 | . . 11 17 55 Average 18 | . 7 38 19 11 Influence Increases 670 | 15 50 180 242 183 Destroy 0b10 Robot/C 380 | . 40 100 100 140 Destroy 0b10 Robot/NC 25 | 15 . . 10 . Destroy Leader 80 | . 10 20 30 20 Disable Machine 30 | . . 15 15 . Destroy Structure 50 | . . . 27 23 Lose Combat Pursuer 105 | . . 45 60 . Influence Decreases 670 | 15 20 165 155 315 Entered New Map 124 | . . 19 28 77 Time Decay 366 | 15 20 105 107 119 Lost Part 160 | . . 41 . 119 Lost Ally 20 | . . . 20 . Squads Dispatched 4 | . . . 2 2 Investigation 2 | . . . 1 1 Extermination . | . . . . . Reinforcement 2 | . . . 1 1 Assault . | . . . . . Garrison . | . . . . . Intercept . | . . . . . Searches Triggered . | . . . . . Construction Impeded 1 | . . . 1 . Haulers Reinforced . | . . . . . Active Scanning Responses . | . . . . . Cargo Convoy Interrupts . | . . . . . Stealth | -11 -10 -10 -9 -8 --------- Run | Yrd Mat Min Mat Mat Distress Signals 2 | . . 1 1 . Communications Jammed . | . . . . . Distress Signals . | . . . . . Times Spotted 58 | . 3 22 14 19 Peak Tracking Total 17 | . 3 17 5 7 Tactical Retreats 5 | . . 3 2 . Traps | -11 -10 -10 -9 -8 ------- Run | Yrd Mat Min Mat Mat Traps Triggered 3 | . 1 . 1 1 Indirectly . | . . . . . Trap Hack Attempts . | . . . . . Triggered . | . . . . . Disarmed . | . . . . . Reprogrammed . | . . . . . Reused . | . . . . . Traps Extracted . | . . . . . Installed . | . . . . . Triggered . | . . . . . Machines | -11 -10 -10 -9 -8 ---------- Run | Yrd Mat Min Mat Mat Machines Disabled 2 | . . 1 1 . Max in Single Turn 1 | . . 1 1 . Machines Repaired . | . . . . . Machines Dismantled . | . . . . . Machines Sabotaged . | . . . . . Overloaded Fab Kills . | . . . . . Hacking | -11 -10 -10 -9 -8 --------- Run | Yrd Mat Min Mat Mat Machines Accessed . | . . . . . Terminals . | . . . . . Fabricators . | . . . . . Repair Stations . | . . . . . Recycling Units . | . . . . . Scanalyzers . | . . . . . Garrison Access . | . . . . . Total Hacks . | . . . . . Successful . | . . . . . Failed . | . . . . . Catastrophic . | . . . . . Database Lockouts . | . . . . . Manual . | . . . . . Terminals . | . . . . . Fabricators . | . . . . . Repair Stations . | . . . . . Recycling Units . | . . . . . Scanalyzers . | . . . . . Garrison Access . | . . . . . Terminal Hacks . | . . . . . Fabricator Hacks . | . . . . . Repair Station Hacks . | . . . . . Recycling Unit Hacks . | . . . . . Scanalyzer . | . . . . . Garrison Access Hacks . | . . . . . Unauthorized Hacks . | . . . . . Terminals . | . . . . . Fabricators . | . . . . . Repair Stations . | . . . . . Recycling Units . | . . . . . Scanalyzers . | . . . . . Garrison Access . | . . . . . Data Cores Recovered . | . . . . . Used . | . . . . . Hacking Detections . | . . . . . Full Trace Events . | . . . . . Feedback Events . | . . . . . Feedback Blocked . | . . . . . Robot Schematics Acquired . | . . . . . Robots Built . | . . . . . Authchips . | . . . . . Time . | . . . . . Total Robot Build Rating . | . . . . . Part Schematics Acquired . | . . . . . Parts Built . | . . . . . Authchips . | . . . . . Time . | . . . . . Total Part Build Rating . | . . . . . Part Studies Acquired . | . . . . . Parts Repaired . | . . . . . Time . | . . . . . Parts Recycled . | . . . . . Recycled Matter . | . . . . . Retrieved Matter . | . . . . . Retrieved Components . | . . . . . Parts Scanalyzed . | . . . . . Part Schematics Acquired . | . . . . . Parts Damaged . | . . . . . Bothacking | -11 -10 -10 -9 -8 ------------ Run | Yrd Mat Min Mat Mat Used RIF Installer . | . . . . . Robots Hacked . | . . . . . Non-combat . | . . . . . Combat . | . . . . . Robot Hacks Applied . | . . . . . Relay Couplers Released . | . . . . . Fabnet Peak Effective % . | . . . . . Robots Rewired . | . . . . . Allies Hacked . | . . . . . Hacks Repelled . | . . . . . Allies | -11 -10 -10 -9 -8 -------- Run | Yrd Mat Min Mat Mat Total Allies 2 | . . 2 . . Largest Group 2 | . . 2 2 . Highest-Rated Group 45 | . . 45 45 . Highest-Rated Ally 31 | . . 31 31 . Total Orders . | . . . . . Ally Attacks 5 | . . . 5 . Total Damage 43 | . . . 43 . Kills . | . . . . . Allies Corrupted . | . . . . . Allies Melted . | . . . . . Intel | -11 -10 -10 -9 -8 ------- Run | Yrd Mat Min Mat Mat Active Infowar (turns) 458 | 28 144 244 16 26 Terrain 222 | 28 144 24 . 26 Seismic 236 | . . 220 16 . Robot Analysis Total . | . . . . . Derelict Logs Recovered 1 | . . 1 . . Drone Launches . | . . . . . Drone Recoveries . | . . . . . Exploration | -11 -10 -10 -9 -8 ------------- Run | Yrd Mat Min Mat Mat Turns Passed 1491 | 146 144 333 350 518 Spaces Moved 840 | 62 109 204 263 202 Core 22 | 9 . 4 . 9 Treads . | . . . . . Legs 467 | 53 109 139 5 161 Wheels 351 | . . 61 258 32 Hover . | . . . . . Flight . | . . . . . Fastest Speed 50 | 50 120 95 80 110 Average Speed 128 | 128 120 119 101 176 Slowest Speed 350 | 200 120 200 260 350 Overloaded Moves . | . . . . . Propulsion Burnouts . | . . . . . Robots Hopped . | . . . . . Potential Cave-ins . | . . . . . Cave-ins Triggered . | . . . . . Exploration Rate (%) 23 | 4 20 46 28 21 Regions Visited 4 Branch Regions 1 Pre-discovered Areas . | . . . . . Known Exits Taken 1 | . . 1 . . Unknown Exits Taken 3 | 1 1 . 1 . Scrap Searched . | . . . . . Spaces Dug . | . . . . . Terrain Destroyed 49 | . . . 25 24 Melee . | . . . . . Projectile . | . . . . . AOE 49 | . . . 25 24 Terrain Rammed . | . . . . . Walls Destroyed . | . . . . . Machines Disabled . | . . . . . Actions | -11 -10 -10 -9 -8 --------- Run | Yrd Mat Min Mat Mat Total 1122 | 100 116 269 326 311 Wait 124 | . . 42 36 46 Move 836 | 61 108 203 262 202 Hop . | . . . . . Pick Up 26 | 11 2 3 3 7 Fast Attach 13 | 6 . 3 1 3 Attach 15 | 1 . 2 3 9 Detach . | . . . . . Swap 9 | . 1 . 5 3 Drop 12 | 2 2 1 1 6 Fire 87 | 19 3 15 15 35 Melee . | . . . . . Ram . | . . . . . Kick . | . . . . . Crush . | . . . . . Escape Stasis . | . . . . . Rewire . | . . . . . Trap . | . . . . . Miscellaneous . | . . . . . Route ------- -11/Scrapyard -10/Materials -10/Mines (discovered 2 exits: *Mat x2) -9/Materials -8/Materials History --------- Turn | Location | Event 23 | -11/Scrapyard | Discovered new exit (range 15) 147 | -11/Scrapyard | Entered Materials 147 | -10/Materials | Discovered new exit (range 8) 291 | -10/Materials | Entered Mines 292 | -10/Mines | Assembled infested the area 297 | -10/Mines | Assisted by a Guerilla fighting off Assembled 303 | -10/Mines | Build established: Mutant 322 | -10/Mines | Core integrity fell below 50% 446 | -10/Mines | Identified exit to Materials 523 | -10/Mines | Lost 4 parts (1p2n1w) 600 | -10/Mines | Discovered exit to Materials (range 6) 624 | -10/Mines | Entered Materials 624 | -9/Materials | Accompanied by 2 allies 624 | -9/Materials | Evolved 2 slots: Propulsion x1, Utility x1 629 | -9/Materials | Led the pair of lost Derelicts to an unsafe place 819 | -9/Materials | Build established: Scavenger-Mutant 916 | -9/Materials | Discovered new exit (range 15) 974 | -9/Materials | Entered another Materials area 974 | -8/Materials | Evolved 2 slots: Propulsion x1, Utility x1 1456 | -8/Materials | Core integrity fell below 50% 1478 | -8/Materials | Core integrity fell below 20% 1492 | -8/Materials | Destroyed by G-47 Trooper with Particle Gun Last Messages --------------- U-05 Engineer lays Concrete. S-10 Pest destroyed. Acquired 55 matter. U-05 Engineer builds a Wall. Nuclear Core destroyed. Critical hit (Burn: +37). Com. Matter Pod destroyed. Critical hit (Burn: +37). U-05 Engineer lays Concrete. Acquired Beam Rifle. G-47 Trooper destroyed. Beam Rifle destroyed. Acquired Imp. Ion Engine. Imp. Terrain Scanner destroyed. Acquired 2 matter. U-05 Engineer builds a Wall. Acquired Welding Torch. U-05 Engineer lays Concrete. U-05 Engineer builds a Door. Welding Torch destroyed. Map ----- +----------------------------------------------------+ | | | | | | | | | | | | | | | | | | | | | | | | | | | | | | | ?????????????????????####????## ############??? | | ????????????????? ??? ??### """ """ #?## | | ????????????????""??"" ??# " = """"""""" #?# | | ?????????????# """ """ ?## " %! """"" #?# | | ?????????????# """ """ ?## " = #?# | | ?????????????# #?# % # ### | | ????????????#? ??# # ! # + | | ?????????????#? ### [ # # # | | ????????????#######+###########/########+###### ## | | ?????????? u g= = m m | | ?????????? =s @% ######## | | ?????????? == g = % #??????# | | ????????????#####;# # ############ #???? # | | ??????????????# # ### [ # #??"" # | | ??????????????# ??## ### # # """ # | | ??????????????# ?"? ?# ### # + """ # | | ??????????????#???????# #?# """ """ # # # | | ???????????????????" ?# #?# """ """ + #?? # | | ???????????????? ??? ?# ### """ """ # #????### | | ??????????????????????# ### # #??????# | | ???????????????#?##???#####?# # #??????# | | ????????????????????#???????########### #??????# | | ???????????????????#??????????#???#?#?# #??????# | | ?????????????????#???????#???#?#????#?# #??????# | | ??????????????????????#??????#????????# #??????# | | ???????????????????????????????#??????# #??????# | | ??????????????????????????????#?#?????# #??????# | | ??????????????????????????#???????????# #??????# | | ??????????????????????????????????????# #??????# | | ??????????????????????????????????????# +??????# | | ??????????????????????????????????????? #??????# | | ??????????????????????????????????????? #??????? | | ??????????????????????????????????????? ???????? | | ?????????????????????????????????????????????????? | | ?????????????????????????????????????????????????? | +----------------------------------------------------+ Best States ------------- Heat Dissipation 45 Energy Generation 14 Energy Capacity 265 Matter Stores 395 Matter Capacity 450 Sight Range 16 Terrain Scan Range 16 Terrain Scan Density 85 Armor Coverage 225 Evasion (%) 55 Item Schematics ----------------- None Robot Schematics ------------------ None Fabricated ------------ Nothing Repaired ---------- Nothing Studied --------- None Alien Tech Used ----------------- None Achievements -------------- Slippery One Challenges ------------ None Game ------ Seed IntegrityMeleeOptics Manual? 0 Play Time 00:22:04 Cumulative 37.0 hours Start 2026.09.24 @ 04:20:27 End 2026.09.24 @ 04:40:28 Sessions 1 Manual Loads 0 Difficulty Rogue Special Mode None Game No. 58 Rogue 58 Adventurer 0 Explorer 0 Win Type - Total 0 Types 0/0/0/0/0/0/0/0/0/0 Lore% 24 Gallery% 23 Achievement% 19 Wizard Run 0 Options --------- Layout 1 ASCII 0 Keyboard 0 Movement Mouse Keybinds 0 Fullscreen 1 Font 16/SmallcapsGlow Map View 50x40 Zoom Use 0% Tactical HUD 0 Map Filters NONE Filters NONE Steam SD RUN: 6bfed48b-d173-48db-ad3b-d38d8da81917